Cogmind - Beta 10.2 @@@ ROGUE MODE // 2022.03.01 @ 02:50:12 Player: woegarden Result: Destroyed by Y-45 Defender with Heavy Assault Rifle Performance ------------- Evolutions (1) 500 Regions Visited (2) 400 Robots Destroyed (15) 75 Value Destroyed (176) 176 Prototype IDs (0) 0 Alien Tech Used (0) 0 Bonus (0) 0 TOTAL SCORE: 1151 Bonus ------- None Cogmind --------- Core Integrity 0/400 Matter 236/300 Energy 100/100 System Corruption 2% Temperature Cool (6) Movement Core (300) Ox5 Location -9/Materials Parts ------- > --- POWER (2) -------- (None) > --- PROPULSION (2) --- (None) > --- UTILITY (3) ------ Large Storage Unit Visual Processing Unit > --- WEAPON (2) ------- (None) > --- INVENTORY (10) --- Medium Storage Unit High-capacity Storage Unit Improved Sensor Array Advanced Signal Interpreter Hardened Light Armor Plating Datajack Peak State ------------ > --- POWER ------------ Light Ion Engine > --- PROPULSION ------- Light Treads Compact Wheel > --- UTILITY ---------- Large Storage Unit Visual Processing Unit > --- WEAPON ----------- EM Pulse Cannon > --- INVENTORY -------- Medium Storage Unit High-capacity Storage Unit Improved Sensor Array Advanced Signal Interpreter Hardened Light Armor Plating Mini Grenade Launcher [Rating: 10] Favorites ----------- Power Ion Engine Engine Ion Engine Propulsion Aluminum Leg Treads Light Treads Leg Aluminum Leg Wheel Compact Wheel Utility Large Storage Unit Device Improved Sensor Array Storage Large Storage Unit Processor Visual Processing Unit Weapon Small Laser Energy Gun Small Laser Energy Cannon EM Pulse Cannon Ballistic Gun Light Assault Rifle Launcher Mini Grenade Launcher Build | -11 -10 -9 ------- Run | Scr Mat Mat Slots Evolved 2 | . . 2 Power 1 | . . 1 Propulsion . | . . . Utility 1 | . . 1 Weapon . | . . . Parts Attached 16 | . 8 8 Power 3 | . 1 2 Engine 3 | . 1 2 Core . | . . . Reactor . | . . . Propulsion 4 | . 2 2 Treads 1 | . 1 . Leg . | . . . Wheel 3 | . 1 2 Hover . | . . . Flight . | . . . Utility 6 | . 5 1 Device 1 | . 1 . Storage 4 | . 4 . Processor 1 | . . 1 Hackware . | . . . Protection . | . . . Artifact . | . . . Weapon 3 | . . 3 Energy Gun . | . . . Energy Cannon 1 | . . 1 Ballistic Gun 1 | . . 1 Ballistic Cannon . | . . . Launcher 1 | . . 1 Special Weapon . | . . . Impact Weapon . | . . . Slashing Weapon . | . . . Piercing Weapon . | . . . Special Melee Weapon . | . . . Unidentified Prototypes . | . . . Parts Lost 16 | . 5 11 Power 4 | . 1 3 Propulsion 6 | . 2 4 Utility 1 | . . 1 Weapon 5 | . 2 3 Highest Loss Streak 5 | . 5 5 Average Slot Usage (%) 71 | . 91 46 Engine 9 | . 13 3 Treads 1 | . . 2 Leg 14 | . 25 . Wheel 3 | . . 8 Device 7 | . 12 1 Storage 12 | . 14 11 Processor 4 | . . 11 Energy Gun 12 | . 22 . Ballistic Gun 1 | . . 3 Launcher 1 | . . 3 Naked Turns . | . . . Heaviest Build 24 | 11 24 23 Greatest Support 20 | 20 20 16 Greatest Overweight (x) 5 | . 2 5 Average Overweight (x) . | . . 1 Largest Inventory Capacity 12 | . 12 10 Average Capacity 9 | . 8 10 Most Carried 9 | . 9 7 Average Carried 6 | . 7 5 Final Capacity 10 | 6 10 10 Final Carried 6 | 6 6 6 Class Distribution -------------------- 100% | Mutant Dominant Class ---------------- Mutant | -10/Materials Mutant | -9/Materials Resources | -11 -10 -9 ----------- Run | Scr Mat Mat Matter Collected 299 | 200 36 63 Remotely . | . . . Salvage Created 193 | . 36 157 Parts 26 | . 6 20 Haulers Intercepted . | . . . Recyclers Shooed . | . . . Parts Field Recycled . | . . . Retrieved Matter . | . . . Parts Self-Destructed . | . . . Prevented . | . . . Kills | -11 -10 -9 ------- Run | Scr Mat Mat Combat Hostiles Destroyed 9 | . 1 8 Guns 4 | . 1 3 Cannons 1 | . . 1 AOE 4 | . . 4 Classes Destroyed 6 | . 2 4 Worker 3 | . 1 2 Builder 1 | . . 1 Operator 1 | . . 1 Watcher 1 | . . 1 Swarmer 8 | . 1 7 Brawler 1 | . . 1 Best Kill Streak 4 | . 1 4 Combat Bots Only 4 | . 1 4 Max Kills in Single Turn 3 | . 1 3 Gunslinging . | . . . Exploded 2 | . . 2 Melee . | . . . Uniques/NPCs Destroyed . | . . . Combat | -11 -10 -9 -------- Run | Scr Mat Mat Damage Taken 1593 | . 581 1012 Core 545 | . 134 411 Absorbed by Shields . | . . . Core Remaining (%) 73 | 100 46 . Volleys Fired 27 | . 10 17 Largest 2 | . 2 1 Hottest 80 | . 80 63 Shots Fired 37 | . 20 17 Gun 27 | . 20 7 Cannon 4 | . . 4 Launcher 6 | . . 6 Special . | . . . Kinetic 7 | . . 7 Thermal 20 | . 20 . Explosive 6 | . . 6 Electromagnetic 4 | . . 4 Robot Hit Streak 9 | . 9 5 Robot Miss Streak 4 | . 4 1 Penetration Max . | . . . Secondary Targets 1 | . 1 . Max Gunslinging Chain 1 | . 1 . Shots Hit Robots 25 | . 13 12 Core Hits 19 | . 2 17 Critical Hits . | . . . Critical Kills . | . . . Critical Parts Destroyed . | . . . Melee Attacks . | . . . Impact . | . . . Slashing . | . . . Piercing . | . . . Sneak Attacks . | . . . Combat Hostiles . | . . . Follow-up Attacks . | . . . Damage Inflicted 847 | . 151 696 Guns 198 | . 151 47 Cannons 88 | . . 88 Explosions 552 | . . 552 Melee . | . . . Ramming 9 | . . 9 Kinetic 47 | . . 47 Thermal 151 | . 151 . Explosive 552 | . . 552 Electromagnetic 88 | . . 88 Impact . | . . . Slashing . | . . . Piercing . | . . . Highest Corruption 2 | . . 2 Average Corruption 2 | . . 2 Corruption Purged . | . . . Effects 1 | . . 1 Message Errors 1 | . . 1 Overload Shots . | . . . Overflow Damage 51 | . . 51 Projectiles . | . . . Explosions 51 | . . 51 Melee . | . . . Knockbacks 1 | . . 1 Impact 1 | . . 1 Kinetic . | . . . Secondary . | . . . Self-Inflicted Damage 153 | . . 153 Shots 5 | . . 5 Rammed 2 | . 1 1 Targets Rammed 2 | . 1 1 Kicked . | . . . Crushed . | . . . Highest Temperature 90 | . 90 48 Average Temperature 30 | . 33 18 Received Heat Transfer 198 | . 84 114 Siege Activations . | . . . Robots Corrupted . | . . . Combat Hostiles . | . . . Parts Fried 2 | . . 2 Impact Corruptions . | . . . Robots Melted . | . . . Combat Hostiles . | . . . Parts Melted . | . . . Heat Transferred 350 | . 350 . Parts Sabotaged . | . . . Parts Stolen . | . . . Parts Stripped . | . . . Power Chain Reactions . | . . . Missiles Intercepted . | . . . Alert | -11 -10 -9 ------- Run | Scr Mat Mat Peak Influence 276 | . 85 276 Initial 14 | . . 14 Average 61 | . 20 118 Maximum Alert Level 1 | . . 1 Low Security (%) 88 | . 100 73 Level 1 11 | . . 26 Level 2 . | . . . Level 3 . | . . . Level 4 . | . . . Level 5 . | . . . High Security . | . . . Max Security . | . . . Squads Dispatched 4 | . 2 2 Investigation . | . . . Extermination . | . . . Reinforcement 4 | . 2 2 Assault . | . . . Garrison . | . . . Intercept . | . . . Construction Impeded 1 | . . 1 Haulers Reinforced . | . . . Stealth | -11 -10 -9 --------- Run | Scr Mat Mat Distress Signals 2 | . . 2 Communications Jammed . | . . . Distress Signals . | . . . Times Spotted 37 | . 16 21 Peak Tracking Total 8 | . 8 7 Tactical Retreats 3 | . 1 2 Traps | -11 -10 -9 ------- Run | Scr Mat Mat Traps Triggered . | . . . Indirectly . | . . . Trap Hack Attempts . | . . . Triggered . | . . . Disarmed . | . . . Reprogrammed . | . . . Reused . | . . . Traps Extracted . | . . . Installed . | . . . Triggered . | . . . Machines | -11 -10 -9 ---------- Run | Scr Mat Mat Machines Disabled 2 | . . 2 Max in Single Turn 1 | . . 1 Machines Sabotaged . | . . . Garrisons Compromised . | . . . Overloaded Fab Kills . | . . . Fab Network Shutdowns . | . . . Hacking | -11 -10 -9 --------- Run | Scr Mat Mat Machines Accessed . | . . . Terminals . | . . . Fabricators . | . . . Repair Stations . | . . . Recycling Units . | . . . Scanalyzers . | . . . Garrison Access . | . . . Total Hacks . | . . . Successful . | . . . Failed . | . . . Catastrophic . | . . . Database Lockouts . | . . . Manual . | . . . Terminals . | . . . Fabricators . | . . . Repair Stations . | . . . Recycling Units . | . . . Scanalyzers . | . . . Garrison Access . | . . . Terminal Hacks . | . . . Fabricator Hacks . | . . . Repair Station Hacks . | . . . Recycling Unit Hacks . | . . . Scanalyzer . | . . . Garrison Access Hacks . | . . . Unauthorized Hacks . | . . . Terminals . | . . . Fabricators . | . . . Repair Stations . | . . . Recycling Units . | . . . Scanalyzers . | . . . Garrison Access . | . . . Data Cores Recovered . | . . . Used . | . . . Hacking Detections . | . . . Full Trace Events . | . . . Feedback Events . | . . . Feedback Blocked . | . . . Robot Schematics Acquired . | . . . Robots Built . | . . . Matter . | . . . Time . | . . . Total Robot Build Rating . | . . . Part Schematics Acquired . | . . . Parts Built . | . . . Matter . | . . . Time . | . . . Total Part Build Rating . | . . . Parts Repaired . | . . . Time . | . . . Parts Recycled . | . . . Recycled Matter . | . . . Retrieved Matter . | . . . Retrieved Components . | . . . Parts Scanalyzed . | . . . Part Schematics Acquired . | . . . Parts Damaged . | . . . Bothacking | -11 -10 -9 ------------ Run | Scr Mat Mat Used RIF Installer . | . . . Robots Hacked . | . . . Non-combat . | . . . Combat . | . . . Robot Hacks Applied . | . . . Relay Couplers Released . | . . . Robots Rewired . | . . . Allies Hacked . | . . . Hacks Repelled . | . . . Allies | -11 -10 -9 -------- Run | Scr Mat Mat Total Allies . | . . . Largest Group . | . . . Highest-Rated Group . | . . . Highest-Rated Ally . | . . . Total Orders . | . . . Ally Attacks . | . . . Total Damage . | . . . Kills . | . . . Allies Corrupted . | . . . Allies Melted . | . . . Intel | -11 -10 -9 ------- Run | Scr Mat Mat Robot Analysis Total . | . . . Derelict Logs Recovered . | . . . Drone Launches . | . . . Drone Recoveries . | . . . Exploration | -11 -10 -9 ------------- Run | Scr Mat Mat Turns Passed 479 | . 276 203 Spaces Moved 285 | 1 167 117 Core 14 | . . 14 Treads . | . . . Legs 157 | 1 156 . Wheels 114 | . 11 103 Hover . | . . . Flight . | . . . Fastest Speed 90 | 120 110 90 Average Speed 132 | 120 135 128 Slowest Speed 300 | 120 180 300 Overloaded Moves . | . . . Propulsion Burnouts . | . . . Robots Hopped . | . . . Cave-ins Triggered . | . . . Exploration Rate (%) 17 | 2 37 14 Regions Visited 2 Branch Regions . Pre-discovered Areas . | . . . Known Exits Taken . | . . . Unknown Exits Taken 2 | 1 1 . Scrap Searched . | . . . Spaces Dug . | . . . Terrain Destroyed 40 | . . 40 Melee . | . . . Projectile . | . . . AOE 40 | . . 40 Terrain Rammed . | . . . Walls Destroyed . | . . . Machines Disabled . | . . . Actions | -11 -10 -9 --------- Run | Scr Mat Mat Total 349 | . 196 153 Wait 5 | . . 5 Move 283 | . 166 117 Hop . | . . . Pick Up 12 | . 7 5 Fast Attach 3 | . . 3 Attach 9 | . 4 5 Detach . | . . . Swap 4 | . 4 . Drop 4 | . 4 . Fire 27 | . 10 17 Melee . | . . . Ram 1 | . . 1 Kick 1 | . 1 . Crush . | . . . Escape Stasis . | . . . Rewire . | . . . Trap . | . . . Miscellaneous . | . . . Route ------- -11/Scrapyard -10/Materials -9/Materials History --------- Turn | Location | Event 1 | -11/Scrapyard | Discovered new exit (range 0) 1 | -11/Scrapyard | Entered Materials 269 | -10/Materials | Discovered new exit (range 8) 277 | -10/Materials | Core integrity fell below 50% 277 | -10/Materials | Entered another Materials area 277 | -9/Materials | Evolved 2 slots: Power x1, Utility x1 293 | -9/Materials | Lost 5 parts (1p2n2w) 352 | -9/Materials | Build established: Mutant 373 | -9/Materials | Lost 4 parts (1p1n1u1w) 403 | -9/Materials | Core integrity fell below 50% 471 | -9/Materials | Core integrity fell below 20% 480 | -9/Materials | Destroyed by Y-45 Defender with Heavy Assault Rifle Last Messages --------------- 00444_ Knocked back. 00446_ JHV:E>UW5ENEMQZLE GG/XXCHDTN 00451_ W-16 Scout sends out distress signal. 00454_ U-05 Engineer destroyed. 00454_ W-16 Scout destroyed. 00459_ Acquired Lgt. Ion Engine. 00461_ Acquired Wheel. 00463_ K-01 Serf destroyed. 00463_ Matter Filter disabled. 00465_ B-36 Bruiser destroyed. 00465_ Wheel destroyed. 00465_ Destroyed Wheel. 00465_ Lgt. Ion Engine destroyed. 00465_ Destroyed Lgt. Ion Engine. 00465_ Lgt. Ion Engine destroyed. 00465_ Destroyed Lgt. Ion Engine. 00466_ Mni. Grenade Launcher destroyed. 00468_ The unstable cave ceiling collapses. 00472_ Wheel destroyed. 00479_ The unstable cave ceiling collapses. Map ----- +----------------------------------------------------+ | ?????????????########??????????????? | | ?????????????#]]!!!!#??????????????? | | ?????????????#] ! !!#??????????????? | | ?????????????# =#??????????????? | | ?????????????####%% #############??? | | ???????????###### = #??? | | ???????????# # ########## #??? | | ???????????# / #????????# #??? | | ??? + # ####?????# #??? | | ??######## # # !!##????#%#??? | | ???????????+ # !#????# #??? | | ???????????###### !#????# #??? | | ??????????????? !#????# #??? | | ????????????? !#????# #??? | | ??????????? !!##????# #??? | | ?????????# ##########+###? | | ?????????# """ "?# # #? | | ?????????# """ "## # #? | | ???????? """ "## # #? | | ???????### T## + """ #? | | ?????????# "# # """ #? | | ?????????# ?""" "# [# """ #? | | ?????????# ???"" "# %### ###? | | ????????? ?????" ## *# ## | | ???????????????? ## # # | | ???????????????? ## @[# # | | ???????????????? ### + % # | | ????????????????# ### # #? | | ????????????????? ???# # #? | | ??????????????###??????# ######### | | ??????????????? + ????## g # # | | ????????????????# ???## u# # | | ????????????????# ?## u # """" # | | ????????????????# ### """ # | | ???????????###### # "" # | | ???????? %k """ # | | ??????????##+#### ! """" # | | ????????????????####### "" ? | | ??????????????????????# g """ ? | | ??????????????????????## u # # | | ???????????????????????# ######### | | ???????????????????????# #???????? | | ???????????????????????#g #???????? | | ???????????????????????# #???????? | | ???????????????????????# #???????? | | ???????????????????????# #???????? | | ???????????????????????# #???????? | | ???????????????????????# +???????? | | ??????????????????????? #???????? | | ??????????????????????? #???????? | +----------------------------------------------------+ Best States ------------- Heat Dissipation 28 Energy Generation 15 Energy Capacity 250 Matter Stores 300 Matter Capacity 300 Sight Range 18 Robot Scan Range 13 Terrain Scan Density 10 Evasion (%) 42 Recoil Reduction 1 Item Schematics ----------------- None Robot Schematics ------------------ None Fabricated ------------ Nothing Alien Tech Used ----------------- None Achievements -------------- None Challenges ------------ None Game ------ Seed CompositeTrackerInjector Manual? 0 Play Time 00:08:44 Cumulative 64.0 hours Start 2022.03.01 @ 02:42:06 End 2022.03.01 @ 02:50:12 Sessions 1 Manual Loads 0 Difficulty Rogue Special Mode None Game No. 79 Rogue 33 Adventurer 45 Explorer 1 Win Type - Total 0 Types 0/0/0/0/0/0/0/0/0 Lore% 23 Gallery% 44 Achievement% 28 Wizard Run 0 Options --------- ASCII 0 Keyboard 0 Movement Mouse Keybinds 0 Fullscreen 2 Font 16/Proggy Map View 76x50 Tactical HUD 1 Map Filters NONE Filters LOW_CONTRAST(13,24,33)|BRIGHTNESS(90)|SATURATION(87) Steam 1 RUN: 41f3e375-a24e-41f8-89ef-f7b2859f60c3